Cogmind - Beta 16 @@@ ROGUE MODE // 2026.01.23 @ 21:31:54 Player: Triffids Result: Destroyed by UG-NGV(R) with Subdweller Machine Gun Performance ------------- Evolutions (0) 0 Regions Visited (2) 400 Robots Destroyed (7) 35 Value Destroyed (165) 165 Prototype IDs (0) 0 Alien Tech Used (0) 0 Bonus (0) 0 TOTAL SCORE: 600 Bonus ------- None Cogmind --------- Core Integrity 0/250 Matter 300/300 Energy 250/250 System Corruption 0% Temperature Cool (0) Movement Walking (190) Ox1 Location -10/Subcaves Parts ------- > --- POWER (1) -------- Ion Engine > --- PROPULSION (2) --- Aluminum Leg > --- UTILITY (2) ------ Small Storage Unit Seismic Detector > --- WEAPON (2) ------- Small Laser > --- INVENTORY (8) ---- Ion Engine Aluminum Leg Aluminum Leg Improved Heat Sink Sensor Array Signal Interpreter Assault Rifle Mining Laser Peak State ------------ > --- POWER ------------ Light Ion Engine > --- PROPULSION ------- Aluminum Leg Aluminum Leg > --- UTILITY ---------- Small Storage Unit Seismic Detector > --- WEAPON ----------- Medium Laser Small Laser > --- INVENTORY -------- Light Ion Engine Improved Heat Sink Sensor Array Signal Interpreter Improved Terrain Scanner Propulsion Shielding Assault Rifle Mining Laser [Rating: 8] Favorites ----------- Power Light Ion Engine Engine Light Ion Engine Propulsion Aluminum Leg Leg Aluminum Leg Utility Small Storage Unit Device Seismic Detector Storage Small Storage Unit Weapon Medium Laser Energy Gun Medium Laser Special Weapon Mining Laser Build | -11 -10 -10 ------- Run | Yrd Mat Sub Slots Evolved . | . . . Power . | . . . Propulsion . | . . . Utility . | . . . Weapon . | . . . Parts Attached 12 | 7 1 4 Power 3 | 1 . 2 Engine 3 | 1 . 2 Core . | . . . Reactor . | . . . Propulsion 4 | 2 . 2 Treads . | . . . Leg 4 | 2 . 2 Wheel . | . . . Hover . | . . . Flight . | . . . Utility 2 | 2 . . Device 1 | 1 . . Storage 1 | 1 . . Processor . | . . . Hackware . | . . . Protection . | . . . Artifact . | . . . Weapon 3 | 2 1 . Energy Gun 2 | 2 . . Energy Cannon . | . . . Ballistic Gun . | . . . Ballistic Cannon . | . . . Launcher . | . . . Special Weapon 1 | . 1 . Impact Weapon . | . . . Slashing Weapon . | . . . Piercing Weapon . | . . . Special Melee Weapon . | . . . Unidentified Prototypes . | . . . Parts Lost 2 | . . 2 Power . | . . . Propulsion 1 | . . 1 Utility . | . . . Weapon 1 | . . 1 Highest Loss Streak 2 | . . 2 To Critical Strikes . | . . . Average Backups 5 | 2 4 8 Power 1 | 1 1 1 Propulsion . | . . 1 Utility 2 | . 2 3 Weapon 1 | . 1 2 Tool/Special . | . . . Unused Backups 8 | . . 8 Power 1 | . . 1 Propulsion 2 | . . 2 Utility 4 | . . 4 Weapon 1 | . . 1 Tool/Special . | . . . Average Slot Usage (%) 98 | . 100 97 Engine 14 | . 14 14 Leg 26 | . 28 25 Device 14 | . 14 14 Storage 14 | . 14 14 Energy Gun 26 | . 25 27 Special Weapon 1 | . 2 . Peak Build Rating 8 | 7 8 8 Average Rating 7 | 5 7 7 On Entrance 5 | . 7 8 Avg Prop Armor Cover (%) 34 | 34 . . Naked Turns . | . . . Heaviest Build 14 | 12 12 14 Greatest Support 20 | 20 20 20 Greatest Overweight (x) 1 | . . 1 Average Overweight (x) . | . . . Largest Inventory Capacity 8 | 8 8 8 Average Capacity 7 | 7 8 8 Most Carried 8 | 5 8 8 Average Carried 5 | 2 5 7 Final Capacity 8 | 8 8 8 Final Carried 8 | 3 8 8 Class Distribution -------------------- 73% | Mutant 26% | Scavenger-Mutant Dominant Class ---------------- Mutant | -10/Materials Scavenger-Mutant | -10/Subcaves Resources | -11 -10 -10 ----------- Run | Yrd Mat Sub Matter Collected 330 | 270 20 40 Remotely . | . . . Salvage Created 201 | 52 66 83 Parts 19 | 8 4 7 Haulers Intercepted . | . . . Recyclers Shooed . | . . . Parts Field Recycled . | . . . Retrieved Matter . | . . . Parts Self-Destructed 6 | . . 6 Prevented . | . . . Parts Restored . | . . . Kills | -11 -10 -10 ------- Run | Yrd Mat Sub Combat Hostiles Destroyed 3 | . 1 2 Guns 3 | . 1 2 Classes Destroyed 3 | 1 1 1 Tunneler 4 | 3 1 . Grunt 1 | . 1 . Subdweller 2 | . . 2 Best Kill Streak 3 | 3 1 2 Combat Bots Only 2 | . 1 2 Max Kills in Single Turn 1 | 1 1 1 Gunslinging . | . . . Exploded . | . . . Melee . | . . . Uniques/NPCs Destroyed . | . . . Combat | -11 -10 -10 -------- Run | Yrd Mat Sub Hostile Shots Fired 44 | . 8 36 Missed 11 | . . 11 Hits 33 | . 8 25 Projectile 33 | . 8 25 Critical Strikes 2 | . 1 1 Damage Taken 647 | . 123 524 Core 251 | . 18 233 Absorbed by Shields . | . . . Core Remaining (%) 100 | 100 . . Volleys Fired 41 | 5 9 27 Largest 2 | 2 2 2 Hottest 100 | 90 100 90 Shots Fired 78 | 10 17 51 Gun 77 | 10 16 51 Cannon . | . . . Launcher . | . . . Special 1 | . 1 . Kinetic . | . . . Thermal 78 | 10 17 51 Explosive . | . . . Electromagnetic . | . . . Robot Hit Streak 18 | 8 12 18 Robot Miss Streak 2 | 1 2 2 Penetration Max . | . . . Secondary Targets 1 | . . 1 Max Gunslinging Chain 1 | . . 1 Shots Hit Robots 64 | 8 12 44 Core Hits 10 | 3 4 3 Critical Kills . | . . . Critical Parts Destroyed . | . . . Critical Strikes . | . . . Melee Attacks . | . . . Impact . | . . . Slashing . | . . . Piercing . | . . . Sneak Attacks . | . . . Combat Hostiles . | . . . Follow-up Attacks . | . . . Damage Inflicted 335 | 96 147 92 Guns 332 | 93 147 92 Cannons . | . . . Explosions . | . . . Melee . | . . . Ramming 3 | 3 . . Kinetic . | . . . Thermal 332 | 93 147 92 Explosive . | . . . Electromagnetic . | . . . Impact . | . . . Slashing . | . . . Piercing . | . . . Highest Corruption . | . . . Average Corruption . | . . . Corruption Purged . | . . . Corruption Blocked . | . . . Overload Shots . | . . . Overflow Damage . | . . . Projectiles . | . . . Explosions . | . . . Melee . | . . . Knockbacks . | . . . Impact . | . . . Kinetic . | . . . Secondary . | . . . Self-Inflicted Damage . | . . . Shots . | . . . Rammed . | . . . Targets Rammed 2 | 2 . . Kicked 2 | 2 . . Crushed . | . . . Highest Temperature 270 | 90 270 . Average Temperature 83 | 41 103 . Received Heat Transfer 90 | . 90 . Siege Activations . | . . . Martial Activations . | . . . Shielding Activations . | . . . Robots Disrupted . | . . . Combat Hostiles . | . . . Robots Corrupted . | . . . Combat Hostiles . | . . . Parts Fried . | . . . Impact Corruptions . | . . . Robots Melted . | . . . Combat Hostiles . | . . . Parts Melted 4 | 1 2 1 Heat Transferred 880 | 248 384 248 Parts Sabotaged . | . . . Parts Stolen . | . . . Parts Stripped . | . . . Power Chain Reactions . | . . . Alert | -11 -10 -10 ------- Run | Yrd Mat Sub Maximum Alert Level . | . . . Low Security (%) 100 | 100 100 . Level 1 . | . . . Level 2 . | . . . Level 3 . | . . . Level 4 . | . . . Level 5 . | . . . High Security . | . . . Max Security . | . . . Peak Influence 45 | 5 45 . Initial . | . . . Average 4 | 1 7 . Influence Increases 80 | 15 65 . Destroy 0b10 Robot/C 20 | . 20 . Destroy 0b10 Robot/NC 20 | 15 5 . Destroy Leader 10 | . 10 . Disable Machine 15 | . 15 . Lose Combat Pursuer 15 | . 15 . Influence Decreases 80 | 15 30 35 Entered New Map 18 | . . 18 Time Decay 62 | 15 30 17 Squads Dispatched . | . . . Investigation . | . . . Extermination . | . . . Reinforcement . | . . . Assault . | . . . Garrison . | . . . Intercept . | . . . Searches Triggered . | . . . Construction Impeded . | . . . Haulers Reinforced . | . . . Active Scanning Responses . | . . . Cargo Convoy Interrupts . | . . . Stealth | -11 -10 -10 --------- Run | Yrd Mat Sub Distress Signals . | . . . Communications Jammed . | . . . Distress Signals . | . . . Times Spotted 6 | . 3 3 Peak Tracking Total 3 | . 3 2 Tactical Retreats 1 | . 1 . Traps | -11 -10 -10 ------- Run | Yrd Mat Sub Traps Triggered . | . . . Indirectly . | . . . Trap Hack Attempts . | . . . Triggered . | . . . Disarmed . | . . . Reprogrammed . | . . . Reused . | . . . Traps Extracted . | . . . Installed . | . . . Triggered . | . . . Machines | -11 -10 -10 ---------- Run | Yrd Mat Sub Machines Disabled 1 | . 1 . Max in Single Turn 1 | . 1 . Machines Repaired . | . . . Machines Dismantled . | . . . Machines Sabotaged . | . . . Overloaded Fab Kills . | . . . Hacking | -11 -10 -10 --------- Run | Yrd Mat Sub Machines Accessed 1 | . 1 . Terminals 1 | . 1 . Fabricators . | . . . Repair Stations . | . . . Recycling Units . | . . . Scanalyzers . | . . . Garrison Access . | . . . Total Hacks 1 | . 1 . Successful . | . . . Failed 1 | . 1 . Catastrophic . | . . . Database Lockouts . | . . . Manual . | . . . Terminals 1 | . 1 . Fabricators . | . . . Repair Stations . | . . . Recycling Units . | . . . Scanalyzers . | . . . Garrison Access . | . . . Terminal Hacks . | . . . Fabricator Hacks . | . . . Repair Station Hacks . | . . . Recycling Unit Hacks . | . . . Scanalyzer . | . . . Garrison Access Hacks . | . . . Unauthorized Hacks . | . . . Terminals . | . . . Fabricators . | . . . Repair Stations . | . . . Recycling Units . | . . . Scanalyzers . | . . . Garrison Access . | . . . Data Cores Recovered . | . . . Used . | . . . Hacking Detections 1 | . 1 . Full Trace Events . | . . . Feedback Events . | . . . Feedback Blocked . | . . . Robot Schematics Acquired . | . . . Robots Built . | . . . Authchips . | . . . Time . | . . . Total Robot Build Rating . | . . . Part Schematics Acquired . | . . . Parts Built . | . . . Authchips . | . . . Time . | . . . Total Part Build Rating . | . . . Part Studies Acquired . | . . . Parts Repaired . | . . . Time . | . . . Parts Recycled . | . . . Recycled Matter . | . . . Retrieved Matter . | . . . Retrieved Components . | . . . Parts Scanalyzed . | . . . Part Schematics Acquired . | . . . Parts Damaged . | . . . Bothacking | -11 -10 -10 ------------ Run | Yrd Mat Sub Used RIF Installer . | . . . Robots Hacked . | . . . Non-combat . | . . . Combat . | . . . Robot Hacks Applied . | . . . Relay Couplers Released . | . . . Fabnet Peak Effective % . | . . . Robots Rewired . | . . . Allies Hacked . | . . . Hacks Repelled . | . . . Allies | -11 -10 -10 -------- Run | Yrd Mat Sub Total Allies . | . . . Largest Group . | . . . Highest-Rated Group . | . . . Highest-Rated Ally . | . . . Total Orders . | . . . Ally Attacks . | . . . Total Damage . | . . . Kills . | . . . Allies Corrupted . | . . . Allies Melted . | . . . Intel | -11 -10 -10 ------- Run | Yrd Mat Sub Active Infowar (turns) 364 | . 174 190 Seismic 364 | . 174 190 Robot Analysis Total . | . . . Derelict Logs Recovered . | . . . Drone Launches . | . . . Drone Recoveries . | . . . Exploration | -11 -10 -10 ------------- Run | Yrd Mat Sub Turns Passed 500 | 136 174 190 Spaces Moved 282 | 97 111 74 Core 19 | 19 . . Treads . | . . . Legs 263 | 78 111 74 Wheels . | . . . Hover . | . . . Flight . | . . . Fastest Speed 50 | 50 120 120 Average Speed 115 | 106 120 120 Slowest Speed 190 | 120 120 190 Overloaded Moves . | . . . Propulsion Burnouts . | . . . Robots Hopped . | . . . Potential Cave-ins . | . . . Cave-ins Triggered . | . . . Exploration Rate (%) 11 | 5 23 5 Regions Visited 2 Branch Regions 1 Pre-discovered Areas . | . . . Known Exits Taken . | . . . Unknown Exits Taken 2 | 1 1 . Scrap Searched . | . . . Spaces Dug . | . . . Terrain Destroyed . | . . . Melee . | . . . Projectile . | . . . AOE . | . . . Terrain Rammed . | . . . Walls Destroyed . | . . . Machines Disabled . | . . . Actions | -11 -10 -10 --------- Run | Yrd Mat Sub Total 378 | 118 132 128 Wait 21 | 1 6 14 Move 280 | 96 110 74 Hop . | . . . Pick Up 15 | 7 5 3 Fast Attach 3 | 3 . . Attach 4 | 4 . . Detach . | . . . Swap 6 | . 2 4 Drop 6 | . . 6 Fire 41 | 5 9 27 Melee . | . . . Ram . | . . . Kick 2 | 2 . . Crush . | . . . Escape Stasis . | . . . Rewire . | . . . Trap . | . . . Miscellaneous . | . . . Route ------- -11/Scrapyard -10/Materials (discovered 2 exits: [*Mat] / [*Sub]) -10/Subcaves History --------- Turn | Location | Event 11 | -11/Scrapyard | Discovered new exit (range 15) 137 | -11/Scrapyard | Entered Materials 138 | -10/Materials | Met a group of wandering Federalists 192 | -10/Materials | Discovered new exit (range 9) 226 | -10/Materials | Discovered new exit (range 5) 303 | -10/Materials | Build established: Mutant 311 | -10/Materials | Entered Subcaves 312 | -10/Subcaves | Continued accompanying wandering Federalists (5) 312 | -10/Subcaves | Approached by a straggling Scientist 328 | -10/Subcaves | A swath of the cavern ceiling suddenly collapsed 367 | -10/Subcaves | Lost 5 allies 468 | -10/Subcaves | Core integrity fell below 50% 494 | -10/Subcaves | Core integrity fell below 20% 501 | -10/Subcaves | Destroyed by UG-NGV(R) with Subdweller Machine Gun Last Messages --------------- 00337_ Switching to secondary target: MK-C4G(R). 00343_ Sub. Optics melted. 00343_ MK-C4G(R) destroyed. 00349_ Dropped Aluminum Leg. 00350_ Acquired 10 matter. 00352_ Dropped Imp. Terrain Scanner. 00352_ Dropped Propulsion Shielding. 00359_ Acquired Aluminum Leg. 00361_ Dropped Aluminum Leg. 00361_ Acquired Aluminum Leg. ZU-09K(c): "I think it's somewhere southwest of here" 00363_ Acquired 20 matter. 00365_ Dropped Lgt. Ion Engine. 00366_ Acquired 10 matter. 00371_ Dropped Lgt. Ion Engine. 00371_ Acquired Ion Engine. ZU-09K(c): "I think it's somewhere southwest of here" 00477_ Aluminum Leg destroyed. 00495_ Med. Laser destroyed. Map ----- +----------------------------------------------------+ | ???????# #???? "?????????????????????? | | ???????#### ###??? ""#????????????????????? | | ??????????## #????? "" #????????????????????? | | ???????????# ######& "" #????????????????????? | | ??????????##[!!*#=#*#!! "" #????????????????????? | | ??????????#!=% =[![%%]& #????????????????????? | | ??????????# [##%*% [=]%* #????????????????????? | | ??????????######!###&#![ "#????????????????????? | | ??????????# #=*#?###?# ""#????????????????????? | | ??????????# ##"###?????"" #????????????????????? | | ??????????####?##""##??????##????????????????????? | | ???????????#"###""""#????????????????????????????? | | ??????????##"#"#"#""###??????????????????????????? | | ??????????#""#"#"##" "####???????????????????????? | | ??????????###"""##### ###?????????????????????? | | ???????????######??# ##????????????????????? | | ???????????? ?????# # #????????????????????? | | ????????????# ?????## ## #????????????????????? | | ?????????????#?????# ## ##????????????????????? | | ???????????????????# # #?????????????????????? | | ???????????????????# # #?????????????????????? | | ???????????????????## ## ##????????????????????? | | ????????????????????## #????????????????????? | | ?????????????????????# ##????????????????????? | | ?????????????????????## #?????????????????????? | | ?????????????????????# @ #?????????????????????? | | ?????????????????????#R #?????????????????????? | | ???????????????????# #????????????????????? | | ???????????????????# #< ???????????????????? | | ?????????????????? "## #?????????????????? | | ?????????????????###??# #?????????????????? | | ??????????????????????## #?????????????????? | | ???????????????????????## #????????????????? | | ????????????????????????### ####????????????????? | | ??????????????????????????? ???????????????????? | | ??????????????????????????? ##??????????????????? | | ??????????????????????????? #???????????????????? | | ??????????????????????????? #???????????????????? | | ??????????????????????????? ???????????????????? | | ???????????????????????????? #???????????????????? | | ?????????????????????????????????????????????????? | | ?????????????????????????????????????????????????? | | ?????????????????????????????????????????????????? | | ?????????????????????????????????????????????????? | | ?????????????????????????????????????????????????? | | ?????????????????????????????????????????????????? | | ?????????????????????????????????????????????????? | | ?????????????????????????????????????????????????? | | ?????????????????????????????????????????????????? | | ?????????????????????????????????????????????????? | +----------------------------------------------------+ Best States ------------- Heat Dissipation 25 Energy Generation 10 Energy Capacity 250 Matter Stores 300 Matter Capacity 300 Sight Range 16 Terrain Scan Density 10 Evasion (%) 55 Item Schematics ----------------- None Robot Schematics ------------------ None Fabricated ------------ Nothing Repaired ---------- Nothing Studied --------- None Alien Tech Used ----------------- None Achievements -------------- None Challenges ------------ None Game ------ Seed ArchitectAerolevRefractor Manual? 0 Play Time 00:08:15 Cumulative 269.8 hours Start 2026.01.23 @ 21:24:32 End 2026.01.23 @ 21:31:54 Sessions 1 Manual Loads 0 Difficulty Rogue Special Mode None Game No. 507 Rogue 507 Adventurer 0 Explorer 0 Win Type - Total 1 Types 1/0/0/0/0/0/0/0/0/0 Lore% 37 Gallery% 49 Achievement% 30 Wizard Run 0 Options --------- Layout 1 ASCII 0 Keyboard 1 Movement Vi Keybinds 0 Fullscreen 0 Font 20/Smallcaps Map View 59x39 Zoom Use 0% Tactical HUD 1 Map Filters NONE Filters NONE Steam 1 RUN: 3bdd9650-291d-4079-8828-37049640c02f